[Event "Titled Tuesday Blitz June 27 Early 2023"]
[White "Tarasova, Viktoriya"]
[Black "robertoalejandro10"]
[WhiteFideId "4175840"]
[WhiteElo "2361"]
[BlackElo "2607"]
[Result "1/2-1/2"]
[Round "4"]
[TimeControl "180+2"]
[Date "2023.06.27"]
[WhiteClock "0:00:15"]
[BlackClock "0:00:07"]
[Board "120"]

1. d4 {[%clk 0:03:00]}  Nf6 {[%clk 0:02:56]} 2. c4 {[%clk 0:03:01]}  c5 {[%clk 0:02:55]} 3. d5 {[%clk 0:03:01]}  d6 {[%clk 0:02:55]} 4. Nc3 {[%clk 0:03:01]}  g6 {[%clk 0:02:55]} 5. e4 {[%clk 0:03:00]}  Bg7 {[%clk 0:02:55]} 6. Nf3 {[%clk 0:02:57]}  O-O {[%clk 0:02:55]} 7. Be2 {[%clk 0:02:58]}  Na6 {[%clk 0:02:49]} 8. O-O {[%clk 0:02:56]}  Nc7 {[%clk 0:02:50]} 9. a4 {[%clk 0:02:55]}  Bd7 {[%clk 0:02:49]} 10. h3 {[%clk 0:02:54]}  a6 {[%clk 0:02:49]} 11. Be3 {[%clk 0:02:52]}  Rb8 {[%clk 0:02:49]} 12. Qd2 {[%clk 0:02:53]}  b5 {[%clk 0:02:49]} 13. axb5 {[%clk 0:02:52]}  axb5 {[%clk 0:02:50]} 14. cxb5 {[%clk 0:02:52]}  Nxb5 {[%clk 0:02:49]} 15. Qc2 {[%clk 0:02:48]}  Qc7 {[%clk 0:02:37]} 16. Nd2 {[%clk 0:02:46]}  Nd4 {[%clk 0:02:33]} 17. Qc1 {[%clk 0:02:32]}  Nxe2+ {[%clk 0:02:22]} 18. Nxe2 {[%clk 0:02:30]}  Rb4 {[%clk 0:02:22]} 19. Nc3 {[%clk 0:02:27]}  Rfb8 {[%clk 0:02:20]} 20. Ra2 {[%clk 0:02:20]}  Qb7 {[%clk 0:02:12]} 21. b3 {[%clk 0:02:17]}  Bb5 {[%clk 0:01:55]} 22. Re1 {[%clk 0:02:16]}  Nd7 {[%clk 0:01:50]} 23. Qc2 {[%clk 0:02:07]}  Ne5 {[%clk 0:01:48]} 24. Nxb5 {[%clk 0:02:07]}  Qxb5 {[%clk 0:01:45]} 25. Rf1 {[%clk 0:01:53]}  Qd3 {[%clk 0:01:27]} 26. Qc1 {[%clk 0:01:40]}  Qb5 {[%clk 0:01:21]} 27. Qc2 {[%clk 0:01:38]}  h5 {[%clk 0:01:09]} 28. f4 {[%clk 0:01:29]}  Qd3 {[%clk 0:00:49]} 29. Qxd3 {[%clk 0:01:14]}  Nxd3 {[%clk 0:00:50]} 30. Ra7 {[%clk 0:01:08]}  R8b7 {[%clk 0:00:19]} 31. Ra8+ {[%clk 0:01:03]}  Kh7 {[%clk 0:00:19]} 32. g4 {[%clk 0:00:58]}  Bc3 {[%clk 0:00:18]} 33. Nf3 {[%clk 0:00:56]}  Bf6 {[%clk 0:00:15]} 34. e5 {[%clk 0:00:52]}  dxe5 {[%clk 0:00:15]} 35. fxe5 {[%clk 0:00:53]}  Nxe5 {[%clk 0:00:15]} 36. Nxe5 {[%clk 0:00:51]}  Bxe5 {[%clk 0:00:14]} 37. Rxf7+ {[%clk 0:00:50]}  Bg7 {[%clk 0:00:14]} 38. Bxc5 {[%clk 0:00:47]}  Re4 {[%clk 0:00:05]} 39. gxh5 {[%clk 0:00:41]}  gxh5 {[%clk 0:00:05]} 40. Re8 {[%clk 0:00:33]}  Kg6 {[%clk 0:00:04]} 41. Rexe7 {[%clk 0:00:27]}  Rexe7 {[%clk 0:00:05]} 42. Rxe7 {[%clk 0:00:27]}  Rxb3 {[%clk 0:00:05]} 43. Kg2 {[%clk 0:00:17]}  Rd3 {[%clk 0:00:05]} 44. d6 {[%clk 0:00:17]}  Bf8 {[%clk 0:00:04]} 45. Re6+ {[%clk 0:00:14]}  Kf7 {[%clk 0:00:04]} 46. Re5 {[%clk 0:00:14]}  Bxd6 {[%clk 0:00:03]} 47. Bxd6 {[%clk 0:00:14]}  Rxd6 {[%clk 0:00:04]} 48. Rxh5 {[%clk 0:00:14]}  Kg6 {[%clk 0:00:04]} 49. Ra5 {[%clk 0:00:14]}  Rc6 {[%clk 0:00:04]} 50. Kg3 {[%clk 0:00:14]}  Kh6 {[%clk 0:00:04]} 51. Rb5 {[%clk 0:00:13]}  Rd6 {[%clk 0:00:05]} 52. Kg4 {[%clk 0:00:14]}  Re6 {[%clk 0:00:05]} 53. h4 {[%clk 0:00:14]}  Rc6 {[%clk 0:00:05]} 54. Kg3 {[%clk 0:00:14]}  Rc3+ {[%clk 0:00:05]} 55. Kg4 {[%clk 0:00:15]}  Rc6 {[%clk 0:00:06]} 56. Kg3 {[%clk 0:00:15]}  Rc3+ {[%clk 0:00:06]} 57. Kg4 {[%clk 0:00:15]}  Rc6 {[%clk 0:00:07]} 1/2-1/2


[Site "https://www.chess.com"]

[Event "Titled Tuesday Blitz June 27 Early 2023"]
[White "De La Villa Garcia, Jesus Maria"]
[Black "Romero Ruscalleda, Josep"]
[WhiteFideId "2200040"]
[BlackFideId "2231859"]
[WhiteElo "2594"]
[BlackElo "2353"]
[Result "1-0"]
[Round "4"]
[TimeControl "180+2"]
[Date "2023.06.27"]
[WhiteClock "0:01:12"]
[BlackClock "0:00:35"]
[Board "122"]

1. c4 {[%clk 0:02:55]}  g6 {[%clk 0:03:00]} 2. d4 {[%clk 0:02:54]}  Bg7 {[%clk 0:03:00]} 3. Nf3 {[%clk 0:02:55]}  d6 {[%clk 0:03:01]} 4. g3 {[%clk 0:02:56]}  Nf6 {[%clk 0:03:00]} 5. Bg2 {[%clk 0:02:56]}  O-O {[%clk 0:03:00]} 6. O-O {[%clk 0:02:57]}  Nc6 {[%clk 0:02:59]} 7. Nc3 {[%clk 0:02:55]}  Bf5 {[%clk 0:02:58]} 8. Nh4 {[%clk 0:02:51]}  Bd7 {[%clk 0:02:55]} 9. e4 {[%clk 0:02:46]}  e5 {[%clk 0:02:54]} 10. Nf3 {[%clk 0:02:45]}  Bg4 {[%clk 0:02:51]} 11. d5 {[%clk 0:02:43]}  Nd4 {[%clk 0:02:51]} 12. Be3 {[%clk 0:02:41]}  Nxf3+ {[%clk 0:02:44]} 13. Bxf3 {[%clk 0:02:39]}  Bxf3 {[%clk 0:02:45]} 14. Qxf3 {[%clk 0:02:40]}  Nd7 {[%clk 0:02:45]} 15. Qe2 {[%clk 0:02:35]}  f5 {[%clk 0:02:43]} 16. exf5 {[%clk 0:02:36]}  gxf5 {[%clk 0:02:43]} 17. f4 {[%clk 0:02:36]}  Qe7 {[%clk 0:02:32]} 18. fxe5 {[%clk 0:02:31]}  Nxe5 {[%clk 0:02:29]} 19. Bf4 {[%clk 0:02:30]}  Rae8 {[%clk 0:02:27]} 20. Rae1 {[%clk 0:02:28]}  Qf7 {[%clk 0:02:19]} 21. Kg2 {[%clk 0:02:25]}  a6 {[%clk 0:02:17]} 22. a4 {[%clk 0:02:23]}  Qg6 {[%clk 0:02:06]} 23. Nd1 {[%clk 0:02:14]}  Ng4 {[%clk 0:01:44]} 24. Qd3 {[%clk 0:02:07]}  Qh5 {[%clk 0:01:34]} 25. h3 {[%clk 0:02:03]}  Ne5 {[%clk 0:01:33]} 26. Qc2 {[%clk 0:02:01]}  Qg6 {[%clk 0:01:31]} 27. b3 {[%clk 0:01:57]}  Nd7 {[%clk 0:01:23]} 28. Be3 {[%clk 0:01:36]}  Be5 {[%clk 0:01:17]} 29. Bf2 {[%clk 0:01:30]}  Nf6 {[%clk 0:01:06]} 30. Qd3 {[%clk 0:01:19]}  Ne4 {[%clk 0:01:02]} 31. Re3 {[%clk 0:01:12]}  Nxf2 {[%clk 0:00:47]} 32. Rxf2 {[%clk 0:01:11]}  f4 {[%clk 0:00:45]} 33. Qxg6+ {[%clk 0:01:12]}  hxg6 {[%clk 0:00:44]} 34. gxf4 {[%clk 0:01:12]}  Bd4 {[%clk 0:00:43]} 35. Rxe8 {[%clk 0:01:12]}  Rxe8 {[%clk 0:00:42]} 36. Rd2 {[%clk 0:01:13]}  Be3 {[%clk 0:00:35]} 37. Re2 {[%clk 0:01:12]} 1-0


[Site "https://www.chess.com"]

[Event "Titled Tuesday Blitz June 27 Early 2023"]
[White "Gubajdullin, Alexei"]
[Black "Rodriguez Polo, Mateo"]
[WhiteFideId "4141202"]
[BlackFideId "24509396"]
[WhiteElo "2588"]
[BlackElo "2319"]
[Result "1-0"]
[Round "4"]
[TimeControl "180+2"]
[Date "2023.06.27"]
[WhiteClock "0:01:31"]
[BlackClock "0:00:19"]
[Board "123"]

1. d4 {[%clk 0:03:00]}  e6 {[%clk 0:02:54]} 2. Nf3 {[%clk 0:02:39]}  Nf6 {[%clk 0:02:45]} 3. Bf4 {[%clk 0:02:38]}  b6 {[%clk 0:02:43]} 4. e3 {[%clk 0:02:38]}  Bb7 {[%clk 0:02:43]} 5. Be2 {[%clk 0:02:39]}  c5 {[%clk 0:02:42]} 6. O-O {[%clk 0:02:38]}  Be7 {[%clk 0:02:42]} 7. h3 {[%clk 0:02:39]}  O-O {[%clk 0:02:41]} 8. a4 {[%clk 0:02:38]}  a6 {[%clk 0:02:35]} 9. Na3 {[%clk 0:02:34]}  d5 {[%clk 0:02:20]} 10. Ne5 {[%clk 0:02:25]}  Nc6 {[%clk 0:02:17]} 11. Nxc6 {[%clk 0:02:20]}  Bxc6 {[%clk 0:02:18]} 12. a5 {[%clk 0:02:20]}  b5 {[%clk 0:02:15]} 13. c3 {[%clk 0:02:20]}  Nd7 {[%clk 0:02:12]} 14. Nc2 {[%clk 0:02:19]}  f6 {[%clk 0:02:06]} 15. Bg3 {[%clk 0:02:16]}  e5 {[%clk 0:02:05]} 16. dxc5 {[%clk 0:02:08]}  Nxc5 {[%clk 0:01:59]} 17. Nb4 {[%clk 0:02:08]}  Bb7 {[%clk 0:01:40]} 18. Bf3 {[%clk 0:02:08]}  Ne4 {[%clk 0:01:35]} 19. Bxe4 {[%clk 0:02:06]}  dxe4 {[%clk 0:01:36]} 20. Qb3+ {[%clk 0:02:06]}  Kh8 {[%clk 0:01:32]} 21. Rfd1 {[%clk 0:02:05]}  Qc7 {[%clk 0:01:30]} 22. Qe6 {[%clk 0:01:48]}  Bxb4 {[%clk 0:01:22]} 23. cxb4 {[%clk 0:01:48]}  Rfd8 {[%clk 0:01:23]} 24. Bh4 {[%clk 0:01:45]}  Re8 {[%clk 0:00:47]} 25. Rd7 {[%clk 0:01:36]}  Rxe6 {[%clk 0:00:42]} 26. Rxc7 {[%clk 0:01:36]}  Bd5 {[%clk 0:00:42]} 27. Rd1 {[%clk 0:01:32]}  Rd8 {[%clk 0:00:19]} 28. Rxd5 {[%clk 0:01:31]} 1-0


[Site "https://www.chess.com"]

[Event "Titled Tuesday Blitz June 27 Early 2023"]
[White "Alinasab, Mobina"]
[Black "Rodriguez Santiago, Jaime"]
[WhiteFideId "12528897"]
[BlackFideId "3100898"]
[WhiteElo "2561"]
[BlackElo "2282"]
[Result "1-0"]
[Round "4"]
[TimeControl "180+2"]
[Date "2023.06.27"]
[WhiteClock "0:00:55"]
[BlackClock "0:00:26"]
[Board "125"]

1. e4 {[%clk 0:03:00]}  c6 {[%clk 0:02:59]} 2. d4 {[%clk 0:02:58]}  d5 {[%clk 0:02:57]} 3. Nd2 {[%clk 0:02:57]}  dxe4 {[%clk 0:02:57]} 4. Nxe4 {[%clk 0:02:57]}  Nf6 {[%clk 0:02:57]} 5. Nxf6+ {[%clk 0:02:54]}  exf6 {[%clk 0:02:58]} 6. c3 {[%clk 0:02:54]}  Bd6 {[%clk 0:02:59]} 7. Bd3 {[%clk 0:02:53]}  O-O {[%clk 0:03:00]} 8. Qc2 {[%clk 0:02:54]}  Re8+ {[%clk 0:03:00]} 9. Ne2 {[%clk 0:02:55]}  h5 {[%clk 0:02:59]} 10. O-O {[%clk 0:02:55]}  h4 {[%clk 0:02:54]} 11. h3 {[%clk 0:02:55]}  Nd7 {[%clk 0:02:53]} 12. Bd2 {[%clk 0:02:56]}  Nf8 {[%clk 0:02:52]} 13. Rae1 {[%clk 0:02:56]}  Be6 {[%clk 0:02:49]} 14. c4 {[%clk 0:02:51]}  Bc7 {[%clk 0:02:48]} 15. f4 {[%clk 0:02:48]}  Qd6 {[%clk 0:02:25]} 16. a3 {[%clk 0:02:33]}  Rad8 {[%clk 0:02:16]} 17. Bb4 {[%clk 0:01:47]}  c5 {[%clk 0:01:31]} 18. Bxc5 {[%clk 0:01:34]}  Qc6 {[%clk 0:01:30]} 19. Be4 {[%clk 0:01:22]}  Qa6 {[%clk 0:01:29]} 20. d5 {[%clk 0:01:22]}  Bc8 {[%clk 0:01:27]} 21. Bd3 {[%clk 0:01:19]}  Bb6 {[%clk 0:01:11]} 22. Bxb6 {[%clk 0:01:16]}  Qxb6+ {[%clk 0:01:11]} 23. Kh1 {[%clk 0:01:15]}  Qe3 {[%clk 0:00:51]} 24. Rf3 {[%clk 0:01:03]}  Qe7 {[%clk 0:00:48]} 25. Rd1 {[%clk 0:01:02]}  Nd7 {[%clk 0:00:47]} 26. b4 {[%clk 0:01:01]}  Nb6 {[%clk 0:00:42]} 27. Nd4 {[%clk 0:00:59]}  g5 {[%clk 0:00:31]} 28. fxg5 {[%clk 0:00:57]}  fxg5 {[%clk 0:00:32]} 29. Bf5 {[%clk 0:00:55]}  Bxf5 {[%clk 0:00:27]} 30. Nxf5 {[%clk 0:00:56]}  Nxc4 {[%clk 0:00:26]} 31. Nxe7+ {[%clk 0:00:55]} 1-0


[Site "https://www.chess.com"]

[Event "Titled Tuesday Blitz June 27 Early 2023"]
[White "Bilan, Danila"]
[Black "Balint, Vilmos"]
[WhiteFideId "24161918"]
[BlackFideId "718050"]
[WhiteElo "2554"]
[BlackElo "2225"]
[Result "0-1"]
[Round "4"]
[TimeControl "180+2"]
[Date "2023.06.27"]
[WhiteClock "0:00:14"]
[BlackClock "0:01:11"]
[Board "127"]

1. d4 {[%clk 0:03:00]}  Nf6 {[%clk 0:02:12]} 2. Nf3 {[%clk 0:03:00]}  e6 {[%clk 0:02:13]} 3. g3 {[%clk 0:02:59]}  d5 {[%clk 0:02:13]} 4. Bg2 {[%clk 0:02:59]}  Be7 {[%clk 0:02:14]} 5. O-O {[%clk 0:03:00]}  O-O {[%clk 0:02:15]} 6. c4 {[%clk 0:03:00]}  c6 {[%clk 0:02:16]} 7. Qc2 {[%clk 0:02:59]}  Nbd7 {[%clk 0:02:16]} 8. Nbd2 {[%clk 0:02:59]}  b6 {[%clk 0:02:17]} 9. Rd1 {[%clk 0:02:58]}  Bb7 {[%clk 0:02:17]} 10. e4 {[%clk 0:02:53]}  dxe4 {[%clk 0:02:17]} 11. Nxe4 {[%clk 0:02:54]}  Nxe4 {[%clk 0:02:17]} 12. Qxe4 {[%clk 0:02:55]}  Rc8 {[%clk 0:02:16]} 13. Bf4 {[%clk 0:02:49]}  Nf6 {[%clk 0:02:16]} 14. Qe2 {[%clk 0:02:32]}  h6 {[%clk 0:02:16]} 15. Ne5 {[%clk 0:02:26]}  Re8 {[%clk 0:02:16]} 16. Rac1 {[%clk 0:02:21]}  Nd7 {[%clk 0:02:16]} 17. Qg4 {[%clk 0:01:44]}  Nf6 {[%clk 0:01:52]} 18. Qf3 {[%clk 0:01:34]}  Ba8 {[%clk 0:01:49]} 19. Qe2 {[%clk 0:01:16]}  Nd7 {[%clk 0:01:49]} 20. Rd3 {[%clk 0:01:01]}  Nxe5 {[%clk 0:01:44]} 21. dxe5 {[%clk 0:00:52]}  Qc7 {[%clk 0:01:44]} 22. Rcd1 {[%clk 0:00:53]}  Rcd8 {[%clk 0:01:44]} 23. a3 {[%clk 0:00:47]}  Rxd3 {[%clk 0:01:43]} 24. Rxd3 {[%clk 0:00:46]}  Rd8 {[%clk 0:01:44]} 25. b4 {[%clk 0:00:44]}  c5 {[%clk 0:01:35]} 26. b5 {[%clk 0:00:31]}  Bxg2 {[%clk 0:01:32]} 27. Kxg2 {[%clk 0:00:32]}  Kf8 {[%clk 0:01:28]} 28. f3 {[%clk 0:00:29]}  Ke8 {[%clk 0:01:23]} 29. Rxd8+ {[%clk 0:00:19]}  Qxd8 {[%clk 0:01:23]} 30. Qe4 {[%clk 0:00:18]}  Qd1 {[%clk 0:01:10]} 31. Qa8+ {[%clk 0:00:17]}  Bd8 {[%clk 0:01:10]} 32. Qc6+ {[%clk 0:00:14]}  Qd7 {[%clk 0:01:10]} 33. Qxd7+ {[%clk 0:00:13]}  Kxd7 {[%clk 0:01:11]} 34. Kf2 {[%clk 0:00:11]}  h5 {[%clk 0:01:12]} 35. Bd2 {[%clk 0:00:09]}  g6 {[%clk 0:01:11]} 36. Ke3 {[%clk 0:00:09]}  Kc8 {[%clk 0:01:11]} 37. Ke4 {[%clk 0:00:09]}  Kd7 {[%clk 0:01:11]} 38. f4 {[%clk 0:00:09]}  Be7 {[%clk 0:01:11]} 39. h3 {[%clk 0:00:10]}  Bf8 {[%clk 0:01:12]} 40. g4 {[%clk 0:00:10]}  hxg4 {[%clk 0:01:13]} 41. hxg4 {[%clk 0:00:11]}  Bg7 {[%clk 0:01:13]} 42. f5 {[%clk 0:00:11]}  gxf5+ {[%clk 0:01:13]} 43. gxf5 {[%clk 0:00:12]}  Bf8 {[%clk 0:01:14]} 44. f6 {[%clk 0:00:11]}  Kc7 {[%clk 0:01:13]} 45. Kf4 {[%clk 0:00:11]}  Bh6+ {[%clk 0:01:12]} 46. Kg4 {[%clk 0:00:10]}  Bxd2 {[%clk 0:01:13]} 47. Kh5 {[%clk 0:00:11]}  Kd7 {[%clk 0:01:14]} 48. Kg4 {[%clk 0:00:11]}  Ke8 {[%clk 0:01:12]} 49. a4 {[%clk 0:00:10]}  Kf8 {[%clk 0:01:11]} 50. Kf3 {[%clk 0:00:11]}  Kg8 {[%clk 0:01:12]} 51. Ke4 {[%clk 0:00:12]}  Bc3 {[%clk 0:01:11]} 52. Kd3 {[%clk 0:00:13]}  Bd4 {[%clk 0:01:12]} 53. Ke4 {[%clk 0:00:14]}  Kh7 {[%clk 0:01:12]} 54. Kf4 {[%clk 0:00:14]}  Kg6 {[%clk 0:01:11]} 55. a5 {[%clk 0:00:15]}  bxa5 {[%clk 0:01:11]} 56. Ke4 {[%clk 0:00:14]}  Kg5 {[%clk 0:01:11]} 0-1


[Site "https://www.chess.com"]

[Event "Titled Tuesday Blitz June 27 Early 2023"]
[White "Quirke, Jeffrey"]
[Black "Bharath Subramaniyam H"]
[WhiteFideId "2013029"]
[BlackFideId "46634827"]
[WhiteElo "2229"]
[BlackElo "2816"]
[Result "0-1"]
[Round "4"]
[TimeControl "180+2"]
[Date "2023.06.27"]
[WhiteClock "0:00:00"]
[BlackClock "0:00:55"]
[Board "128"]

1. e4 {[%clk 0:03:00]}  c5 {[%clk 0:02:28]} 2. Nc3 {[%clk 0:02:59]}  d6 {[%clk 0:02:28]} 3. f4 {[%clk 0:02:58]}  Nf6 {[%clk 0:02:28]} 4. Nf3 {[%clk 0:02:57]}  g6 {[%clk 0:02:28]} 5. Bb5+ {[%clk 0:02:56]}  Bd7 {[%clk 0:02:27]} 6. a4 {[%clk 0:02:56]}  Nc6 {[%clk 0:02:21]} 7. d3 {[%clk 0:02:53]}  Bg7 {[%clk 0:02:20]} 8. O-O {[%clk 0:02:54]}  O-O {[%clk 0:02:20]} 9. h3 {[%clk 0:02:49]}  a6 {[%clk 0:02:19]} 10. Bxc6 {[%clk 0:02:46]}  Bxc6 {[%clk 0:02:20]} 11. a5 {[%clk 0:02:47]}  b5 {[%clk 0:02:09]} 12. axb6 {[%clk 0:02:45]}  Qxb6 {[%clk 0:02:10]} 13. Nd2 {[%clk 0:02:34]}  c4+ {[%clk 0:02:08]} 14. Kh2 {[%clk 0:02:33]}  cxd3 {[%clk 0:02:08]} 15. cxd3 {[%clk 0:02:33]}  Nd7 {[%clk 0:02:04]} 16. Nc4 {[%clk 0:02:31]}  Qc7 {[%clk 0:02:02]} 17. Na5 {[%clk 0:02:27]}  Nc5 {[%clk 0:01:57]} 18. Be3 {[%clk 0:02:13]}  Rfb8 {[%clk 0:01:56]} 19. Qc2 {[%clk 0:02:01]}  Bb5 {[%clk 0:01:34]} 20. Rfd1 {[%clk 0:01:41]}  Qd7 {[%clk 0:01:31]} 21. d4 {[%clk 0:01:32]}  Ne6 {[%clk 0:01:27]} 22. Nd5 {[%clk 0:01:03]}  Rc8 {[%clk 0:01:25]} 23. Qd2 {[%clk 0:01:00]}  Rab8 {[%clk 0:01:21]} 24. Rdc1 {[%clk 0:00:55]}  Nc7 {[%clk 0:01:16]} 25. Nb4 {[%clk 0:00:36]}  d5 {[%clk 0:01:14]} 26. e5 {[%clk 0:00:23]}  Ne6 {[%clk 0:01:12]} 27. Nd3 {[%clk 0:00:10]}  Bxd3 {[%clk 0:01:01]} 28. Qxd3 {[%clk 0:00:11]}  Rxb2 {[%clk 0:01:01]} 29. Qxa6 {[%clk 0:00:08]}  Rxc1 {[%clk 0:01:01]} 30. Rxc1 {[%clk 0:00:08]}  Bh6 {[%clk 0:01:01]} 31. Rf1 {[%clk 0:00:01]}  Kg7 {[%clk 0:00:57]} 32. Qc6 {[%clk 0:00:00]}  Qd8 {[%clk 0:00:55]} 0-1


[Site "https://www.chess.com"]

[Event "Titled Tuesday Blitz June 27 Early 2023"]
[White "Goltsev, Dmitry"]
[Black "Lopez Gracia, Fernando"]
[WhiteFideId "24176710"]
[BlackFideId "2207184"]
[WhiteElo "2713"]
[BlackElo "2444"]
[Result "0-1"]
[Round "4"]
[TimeControl "180+2"]
[Date "2023.06.27"]
[WhiteClock "0:00:26"]
[BlackClock "0:01:00"]
[Board "131"]

1. e4 {[%clk 0:03:00]}  e5 {[%clk 0:02:54]} 2. Nf3 {[%clk 0:03:00]}  Nc6 {[%clk 0:02:52]} 3. Bb5 {[%clk 0:03:00]}  a6 {[%clk 0:02:52]} 4. Ba4 {[%clk 0:03:01]}  Nf6 {[%clk 0:02:53]} 5. O-O {[%clk 0:03:00]}  Bc5 {[%clk 0:02:53]} 6. Nxe5 {[%clk 0:03:00]}  Nxe5 {[%clk 0:02:53]} 7. d4 {[%clk 0:03:00]}  b5 {[%clk 0:02:53]} 8. Bb3 {[%clk 0:02:56]}  Bxd4 {[%clk 0:02:53]} 9. Qxd4 {[%clk 0:02:57]}  d6 {[%clk 0:02:54]} 10. c3 {[%clk 0:02:56]}  c5 {[%clk 0:02:51]} 11. Qd1 {[%clk 0:02:55]}  O-O {[%clk 0:02:47]} 12. Bg5 {[%clk 0:02:55]}  Bb7 {[%clk 0:02:47]} 13. Nd2 {[%clk 0:02:55]}  h6 {[%clk 0:02:44]} 14. Bh4 {[%clk 0:02:54]}  Ng6 {[%clk 0:02:39]} 15. Bg3 {[%clk 0:02:50]}  Re8 {[%clk 0:02:29]} 16. f3 {[%clk 0:02:45]}  d5 {[%clk 0:02:27]} 17. Qc2 {[%clk 0:02:40]}  c4 {[%clk 0:02:22]} 18. Rae1 {[%clk 0:02:39]}  cxb3 {[%clk 0:02:18]} 19. axb3 {[%clk 0:02:40]}  dxe4 {[%clk 0:02:17]} 20. fxe4 {[%clk 0:02:38]}  Ng4 {[%clk 0:02:14]} 21. h3 {[%clk 0:02:35]}  Qb6+ {[%clk 0:02:13]} 22. Kh1 {[%clk 0:02:34]}  Ne3 {[%clk 0:02:12]} 23. Qd3 {[%clk 0:02:24]}  Nxf1 {[%clk 0:02:12]} 24. Rxf1 {[%clk 0:02:25]}  Rad8 {[%clk 0:02:03]} 25. Qe2 {[%clk 0:02:22]}  Qe6 {[%clk 0:01:57]} 26. Re1 {[%clk 0:02:17]}  Ne5 {[%clk 0:01:57]} 27. Rf1 {[%clk 0:02:12]}  Nd3 {[%clk 0:01:52]} 28. Nf3 {[%clk 0:02:03]}  Qxe4 {[%clk 0:01:49]} 29. Qd2 {[%clk 0:02:00]}  Ne5 {[%clk 0:01:45]} 30. Nd4 {[%clk 0:01:55]}  Nc6 {[%clk 0:01:34]} 31. Qf2 {[%clk 0:01:51]}  Nxd4 {[%clk 0:01:34]} 32. Qxf7+ {[%clk 0:01:50]}  Kh8 {[%clk 0:01:35]} 33. Rf2 {[%clk 0:01:46]}  Ne6 {[%clk 0:01:29]} 34. Qh5 {[%clk 0:01:06]}  Rf8 {[%clk 0:01:28]} 35. Re2 {[%clk 0:01:00]}  Qd5 {[%clk 0:01:18]} 36. Qg6 {[%clk 0:00:57]}  Qd1+ {[%clk 0:01:06]} 37. Re1 {[%clk 0:00:55]}  Qd2 {[%clk 0:01:06]} 38. Rg1 {[%clk 0:00:51]}  Nf4 {[%clk 0:01:07]} 39. Bxf4 {[%clk 0:00:46]}  Qxf4 {[%clk 0:01:08]} 40. Qb6 {[%clk 0:00:44]}  Qe4 {[%clk 0:01:04]} 41. b4 {[%clk 0:00:36]}  Rd1 {[%clk 0:01:05]} 42. Kh2 {[%clk 0:00:32]}  Rxg1 {[%clk 0:01:03]} 43. Qxg1 {[%clk 0:00:32]}  Qf4+ {[%clk 0:01:01]} 44. Kh1 {[%clk 0:00:26]}  Qg3 {[%clk 0:01:00]} 0-1


[Site "https://www.chess.com"]

[Event "Titled Tuesday Blitz June 27 Early 2023"]
[White "Liyanage, Ranindu Dilshan"]
[Black "Miszler, Levente"]
[WhiteFideId "9915834"]
[BlackFideId "763276"]
[WhiteElo "2675"]
[BlackElo "2442"]
[Result "0-1"]
[Round "4"]
[TimeControl "180+2"]
[Date "2023.06.27"]
[WhiteClock "0:00:34"]
[BlackClock "0:00:49"]
[Board "132"]

1. Nf3 {[%clk 0:03:00]}  Nf6 {[%clk 0:02:57]} 2. c4 {[%clk 0:03:01]}  e6 {[%clk 0:02:56]} 3. e3 {[%clk 0:03:02]}  d5 {[%clk 0:02:56]} 4. b3 {[%clk 0:03:02]}  g6 {[%clk 0:02:55]} 5. Bb2 {[%clk 0:03:03]}  Bg7 {[%clk 0:02:55]} 6. Be2 {[%clk 0:03:02]}  O-O {[%clk 0:02:55]} 7. O-O {[%clk 0:03:02]}  c6 {[%clk 0:02:53]} 8. Nc3 {[%clk 0:03:02]}  b6 {[%clk 0:02:52]} 9. d4 {[%clk 0:03:02]}  Bb7 {[%clk 0:02:52]} 10. Ne5 {[%clk 0:03:01]}  Nbd7 {[%clk 0:02:52]} 11. f4 {[%clk 0:03:01]}  Rc8 {[%clk 0:02:51]} 12. Bf3 {[%clk 0:03:01]}  Ne8 {[%clk 0:02:48]} 13. Nd3 {[%clk 0:02:58]}  f6 {[%clk 0:02:44]} 14. e4 {[%clk 0:02:57]}  dxe4 {[%clk 0:02:42]} 15. Nxe4 {[%clk 0:02:58]}  Qe7 {[%clk 0:02:35]} 16. Re1 {[%clk 0:02:55]}  Ba8 {[%clk 0:02:30]} 17. a3 {[%clk 0:02:55]}  Nd6 {[%clk 0:02:29]} 18. a4 {[%clk 0:02:53]}  Nxe4 {[%clk 0:02:26]} 19. Bxe4 {[%clk 0:02:54]}  Qd6 {[%clk 0:02:26]} 20. Qe2 {[%clk 0:02:34]}  Rce8 {[%clk 0:02:22]} 21. Kh1 {[%clk 0:02:30]}  c5 {[%clk 0:02:22]} 22. Bxa8 {[%clk 0:02:28]}  Rxa8 {[%clk 0:02:21]} 23. Qxe6+ {[%clk 0:02:26]}  Qxe6 {[%clk 0:02:22]} 24. Rxe6 {[%clk 0:02:26]}  cxd4 {[%clk 0:02:21]} 25. Bxd4 {[%clk 0:02:27]}  Rad8 {[%clk 0:02:20]} 26. Bb2 {[%clk 0:02:19]}  Rfe8 {[%clk 0:02:17]} 27. Rxe8+ {[%clk 0:02:17]}  Rxe8 {[%clk 0:02:18]} 28. Nb4 {[%clk 0:02:18]}  Re2 {[%clk 0:02:16]} 29. Bc3 {[%clk 0:02:17]}  Nc5 {[%clk 0:02:14]} 30. Rb1 {[%clk 0:02:08]}  Ne4 {[%clk 0:02:09]} 31. Nd5 {[%clk 0:02:00]}  Rc2 {[%clk 0:01:55]} 32. Be1 {[%clk 0:01:51]}  f5 {[%clk 0:01:51]} 33. Rd1 {[%clk 0:01:28]}  Rb2 {[%clk 0:01:30]} 34. b4 {[%clk 0:01:26]}  Rc2 {[%clk 0:01:28]} 35. Ne3 {[%clk 0:01:17]}  Re2 {[%clk 0:01:28]} 36. Nd5 {[%clk 0:01:18]}  Rc2 {[%clk 0:01:28]} 37. c5 {[%clk 0:01:17]}  bxc5 {[%clk 0:01:27]} 38. b5 {[%clk 0:01:17]}  c4 {[%clk 0:01:25]} 39. a5 {[%clk 0:01:14]}  Rb2 {[%clk 0:01:24]} 40. b6 {[%clk 0:01:14]}  axb6 {[%clk 0:01:24]} 41. axb6 {[%clk 0:01:15]}  c3 {[%clk 0:01:24]} 42. h3 {[%clk 0:01:02]}  c2 {[%clk 0:01:24]} 43. Rc1 {[%clk 0:01:01]}  Rb1 {[%clk 0:01:24]} 44. Rxc2 {[%clk 0:01:02]}  Rxe1+ {[%clk 0:01:24]} 45. Kh2 {[%clk 0:01:03]}  Bd4 {[%clk 0:01:19]} 46. g4 {[%clk 0:01:02]}  Rb1 {[%clk 0:01:06]} 47. Rc8+ {[%clk 0:00:59]}  Kf7 {[%clk 0:01:06]} 48. Kg2 {[%clk 0:00:51]}  Rb2+ {[%clk 0:01:00]} 49. Kf1 {[%clk 0:00:51]}  Bxb6 {[%clk 0:00:50]} 50. Rb8 {[%clk 0:00:38]}  Ng3+ {[%clk 0:00:49]} 51. Ke1 {[%clk 0:00:35]}  Ba5+ {[%clk 0:00:49]} 52. Kd1 {[%clk 0:00:34]}  Rxb8 {[%clk 0:00:49]} 0-1


[Site "https://www.chess.com"]